fUSD/lending_fUSD_20260611
["ID","MTS","AMOUNT","RATE_DAILY","PERIOD"]
[424818796,1781181054000,-151.0,0.0002017,2]
[424818798,1781181054000,-200.0,0.0002017,2]
[424818793,1781181054000,-1769.0,0.0002,2]
[424818795,1781181054000,-158.71838294,0.0002017,2]
[424818808,1781181054000,-661.72841598,0.000206,2]
[424818799,1781181054000,-194.72792766,0.0002017,2]
[424818800,1781181054000,-233.5188934,0.0002017,2]
[424818801,1781181054000,-151.0,0.0002017,2]
[424818803,1781181054000,-2319.72410669,0.0002017,2]
[424818802,1781181054000,-151.0,0.0002017,2]
[424818805,1781181054000,-1760.5,0.00020381,2]
[424818804,1781181054000,-661.72841598,0.000202,2]
[424818806,1781181054000,-661.72841598,0.000204,2]
[424818807,1781181054000,-660.0,0.00020505,4]
[424818809,1781181054000,-215.95576085,0.000206,7]
[424818761,1781181054000,-425.0,0.0002,2]
[424818810,1781181054000,-1000.0,0.00020662,2]
[424818784,1781181054000,-151.0,0.0002,2]
[424818783,1781181054000,-151.0,0.0002,2]
[424818797,1781181054000,-154.12265554,0.0002017,2]
[424818779,1781181054000,-342.0,0.0002,2]
[424818764,1781181054000,-151.0,0.0002,2]
[424818782,1781181054000,-151.0,0.0002,2]
[424818754,1781181054000,-400.0,0.0002,2]
[424818758,1781181054000,-337.0,0.0002,2]
[424818755,1781181054000,-200795.0,0.0002,2]
[424818756,1781181054000,-215.95576085,0.0002,7]
[424818757,1781181054000,-367.0,0.0002,2]
[424818765,1781181054000,-159.968287,0.0002,2]
[424818767,1781181054000,-269.0,0.0002,2]
[424818768,1781181054000,-478.0,0.0002,2]
[424818766,1781181054000,-151.0,0.0002,2]
[424818769,1781181054000,-277.0,0.0002,2]
[424818759,1781181054000,-1107.0,0.0002,2]
[424818780,1781181054000,-1367.898845,0.0002,2]
[424818773,1781181054000,-341.397837,0.0002,2]
[424818777,1781181054000,-1367.898845,0.0002,2]
[424818786,1781181054000,-151.0,0.0002,2]
[424818778,1781181054000,-1367.898845,0.0002,2]
[424818776,1781181054000,-428.0,0.0002,2]
[424818785,1781181054000,-151.0,0.0002,2]
[424818774,1781181054000,-151.0,0.0002,2]
[424818771,1781181054000,-341.397837,0.0002,2]
[424818770,1781181054000,-341.397837,0.0002,2]
[424818775,1781181054000,-396.0,0.0002,2]
[424818772,1781181054000,-341.397837,0.0002,2]
[424818847,1781181055000,-660.0,0.00021131,4]
[424818848,1781181055000,-473.64339053,0.000212,2]
[424818846,1781181055000,-166.98,0.00021087,5]
[424818845,1781181055000,-1769.0,0.00021,2]
[424818844,1781181055000,-1296.0,0.00021,2]
[424818838,1781181055000,-269.0,0.00021,2]
[424818852,1781181055000,-599.60298507,0.00021265,2]
[424818853,1781181055000,-151.0,0.00021265,2]
[424818843,1781181055000,-342.0,0.00021,2]
[424818851,1781181055000,-225.18697532,0.00021264,2]
[424818850,1781181055000,-171.13,0.00021205,2]
[424818842,1781181055000,-428.0,0.00021,2]
[424818849,1781181055000,-215.95576085,0.000212,7]
[424818861,1781181055000,-151.0,0.00021266,2]
[424818855,1781181055000,-158.71838294,0.00021266,2]
[424818865,1781181055000,-769.02,0.000214,2]
[424818854,1781181055000,-747.80937859,0.00021265,2]
[424818857,1781181055000,-154.12265554,0.00021266,2]
[424818860,1781181055000,-151.0,0.00021266,2]
[424818862,1781181055000,-2494.55939288,0.00021266,2]
[424818863,1781181055000,-197.4,0.000213,7]
[424818859,1781181055000,-251.11897888,0.00021266,2]
[424818858,1781181055000,-209.40437684,0.00021266,2]
[424818867,1781181055000,-473.64339053,0.000216,2]
[424818864,1781181055000,-473.64339053,0.000214,2]
[424818837,1781181055000,-1162.0,0.00021,2]
[424818856,1781181055000,-200.0,0.00021266,2]
[424818840,1781181055000,-277.0,0.00021,2]
[424818818,1781181055000,-151.0,0.00020718,2]
[424818833,1781181055000,-1107.0,0.00021,2]
[424818870,1781181055000,-660.0,0.00021758,5]
[424818811,1781181055000,-158.71838294,0.00020718,2]
[424818812,1781181055000,-152.9717936,0.00020718,2]
[424818817,1781181055000,-151.0,0.00020718,2]
[424818815,1781181055000,-201.93286098,0.00020718,2]
[424818819,1781181055000,-2405.55389863,0.00020718,2]
[424818813,1781181055000,-154.12265554,0.00020718,2]
[424818816,1781181055000,-242.15909246,0.00020718,2]
[424818814,1781181055000,-200.0,0.00020718,2]
[424818829,1781181055000,-15000.0,0.00021,2]
[424818830,1781181055000,-6111.0,0.00021,2]
[424818820,1781181055000,-1125.0,0.00020781,2]
[424818841,1781181055000,-396.0,0.00021,2]
[424818822,1781181055000,-380.0,0.00020821,2]
[424818824,1781181055000,-15000.0,0.00021,2]
[424818823,1781181055000,-473.64339053,0.00021,2]
[424818825,1781181055000,-6111.0,0.00021,2]
[424818827,1781181055000,-6111.0,0.00021,2]
[424818826,1781181055000,-15000.0,0.00021,2]
[424818828,1781181055000,-932.777091,0.00021,2]
[424818831,1781181055000,-367.0,0.00021,2]
[424818834,1781181055000,-404.0,0.00021,2]
[424818832,1781181055000,-337.0,0.00021,2]
[424818839,1781181055000,-478.0,0.00021,2]
[424818835,1781181055000,-425.0,0.00021,2]
[424818836,1781181055000,-151.0,0.00021,2]
[424818821,1781181055000,-661.72841598,0.000208,2]
[424818875,1781181055000,-260.4103811,0.00021814,2]
[424818918,1781181055000,-200.0,0.00022362,2]
[424818866,1781181055000,-380.0,0.00021506,2]
[424818900,1781181055000,-425.0,0.00022,2]
[424818903,1781181055000,-478.0,0.00022,2]
[424818906,1781181055000,-428.0,0.00022,2]
[424818905,1781181055000,-396.0,0.00022,2]
[424818907,1781181055000,-342.0,0.00022,2]
[424818908,1781181055000,-342.96,0.00022,2]
[424818914,1781181055000,-631.64600025,0.00022259,7]
[424818915,1781181055000,-1760.5,0.00022353,2]
[424818911,1781181055000,-1769.0,0.00022,2]
[424818910,1781181055000,-150.0,0.00022,2]
[424818904,1781181055000,-277.0,0.00022,2]
[424818909,1781181055000,-1296.0,0.00022,2]
[424818896,1781181055000,-367.0,0.00022,2]
[424818912,1781181055000,-631.64600025,0.00022128,7]
[424818916,1781181055000,-166.98,0.00022353,5]
[424818917,1781181055000,-158.71838294,0.00022362,2]
[424818919,1781181055000,-154.12265554,0.00022362,2]
[424818920,1781181055000,-225.18697532,0.00022362,2]
[424818922,1781181055000,-250.76960971,0.00022362,2]
[424818921,1781181055000,-270.04556521,0.00022362,2]
[424818923,1781181055000,-151.0,0.00022362,2]
[424818925,1781181055000,-660.0,0.00022384,6]
[424818924,1781181055000,-2682.57183977,0.00022362,2]
[424818926,1781181055000,-631.64600025,0.00022391,7]
[424818928,1781181055000,-1005.66,0.00022466,2]
[424818868,1781181055000,-719.25351747,0.0002168,2]
[424818927,1781181055000,-1397.17,0.00022466,2]
[424818901,1781181055000,-1162.0,0.00022,2]
[424818913,1781181055000,-380.0,0.00022191,2]
[424818897,1781181055000,-337.0,0.00022,2]
[424818899,1781181055000,-404.0,0.00022,2]
[424818869,1781181055000,-4853.65,0.00021683,2]
[424818876,1781181055000,-151.0,0.00021814,2]
[424818871,1781181055000,-158.71838294,0.00021814,2]
[424818873,1781181055000,-154.12265554,0.00021814,2]
[424818872,1781181055000,-200.0,0.00021814,2]
[424818874,1781181055000,-217.15233878,0.00021814,2]
[424818878,1781181055000,-2586.85809042,0.00021814,2]
[424818881,1781181055000,-210.54866674,0.00021865,2]
[424818883,1781181055000,-365.0,0.000219,7]
[424818889,1781181055000,-150.0,0.00021918,3]
[424818880,1781181055000,-631.64600025,0.00021865,2]
[424818884,1781181055000,-151.0,0.00021918,2]
[424818886,1781181055000,-151.0,0.00021918,2]
[424818877,1781181055000,-151.0,0.00021814,2]
[424818898,1781181055000,-1107.0,0.00022,2]
[424818879,1781181055000,-165.06322829,0.0002182,2]
[424818895,1781181055000,-450.0,0.00022,2]
[424818893,1781181055000,-6503.0,0.00022,10]
[424818894,1781181055000,-932.777091,0.00022,2]
[424818902,1781181055000,-269.0,0.00022,2]
[424818891,1781181055000,-314.75733867,0.00021996,2]
[424818888,1781181055000,-150.0,0.00021918,2]
[424818887,1781181055000,-5000.0,0.00021918,2]
[424818885,1781181055000,-151.0,0.00021918,2]
[424818890,1781181055000,-155.18434343,0.00021918,2]
[424818882,1781181055000,-473.64339053,0.000219,2]
[424818892,1781181055000,-631.64600025,0.00021996,2]
[424818962,1781181056000,-1769.0,0.00023,2]
[424818965,1781181056000,-150.0,0.00023014,2]
[424818964,1781181056000,-660.0,0.0002301,6]
[424818973,1781181056000,-151.42762908,0.00023105,2]
[424818972,1781181056000,-270.25952719,0.00023105,2]
[424818959,1781181056000,-428.0,0.00023,2]
[424818970,1781181056000,-150.0,0.00023105,2]
[424818963,1781181056000,-206.0,0.00023009,2]
[424818960,1781181056000,-342.0,0.00023,2]
[424818952,1781181056000,-404.0,0.00023,2]
[424818966,1781181056000,-210.54866673,0.00023015,120]
[424818971,1781181056000,-150.0,0.00023105,2]
[424818968,1781181056000,-298.5,0.00023055,2]
[424818978,1781181056000,-150.0,0.00023288,3]
[424818969,1781181056000,-769.02,0.000231,7]
[424818974,1781181056000,-199.98031646,0.00023105,2]
[424818979,1781181056000,-150.0,0.00023296,2]
[424818976,1781181056000,-155.18434343,0.00023287,2]
[424818977,1781181056000,-162.01362747,0.00023287,2]
[424818985,1781181056000,-158.71838294,0.00023458,2]
[424818981,1781181056000,-200.0,0.00023296,2]
[424818980,1781181056000,-200.0,0.00023296,2]
[424818982,1781181056000,-631.64600025,0.00023311,60]
[424818975,1781181056000,-631.64600025,0.0002318,60]
[424818984,1781181056000,-631.64600025,0.00023443,60]
[424818986,1781181056000,-200.0,0.00023458,2]
[424818967,1781181056000,-631.64600025,0.00023048,30]
[424818956,1781181056000,-478.0,0.00023,2]
[424818983,1781181056000,-4853.65,0.00023366,7]
[424818961,1781181056000,-1296.0,0.00023,2]
[424818930,1781181056000,-100000.0,0.00022562,7]
[424818929,1781181056000,-631.64600025,0.00022522,14]
[424818934,1781181056000,-205.421613,0.00022672,7]
[424818931,1781181056000,-159.87546608,0.00022633,2]
[424818932,1781181056000,-631.64600025,0.00022654,14]
[424818938,1781181056000,-631.64600025,0.00022785,14]
[424818933,1781181056000,-384.0,0.00022666,2]
[424818936,1781181056000,-152.0,0.00022733,3]
[424818937,1781181056000,-1224.0,0.00022755,2]
[424818935,1781181056000,-821.726453,0.00022672,7]
[424818940,1781181056000,-204.76612326,0.000228,30]
[424818950,1781181056000,-337.0,0.00023,2]
[424818939,1781181056000,-210.54866674,0.00022785,14]
[424818941,1781181056000,-158.71838294,0.0002291,2]
[424818943,1781181056000,-154.12265554,0.0002291,2]
[424818944,1781181056000,-233.5188934,0.0002291,2]
[424818949,1781181056000,-367.0,0.00023,2]
[424818942,1781181056000,-200.0,0.0002291,2]
[424818948,1781181056000,-932.777091,0.00023,2]
[424818946,1781181056000,-2781.82699784,0.0002291,2]
[424818947,1781181056000,-631.64600025,0.00022917,30]
[424818945,1781181056000,-151.0,0.0002291,2]
[424818951,1781181056000,-1107.0,0.00023,2]
[424818958,1781181056000,-396.0,0.00023,2]
[424818955,1781181056000,-269.0,0.00023,2]
[424818954,1781181056000,-1162.0,0.00023,2]
[424818953,1781181056000,-425.0,0.00023,2]
[424818957,1781181056000,-277.0,0.00023,2]
[424818987,1781181056000,-154.12265568,0.00023458,2]
[424818989,1781181056000,-151.0,0.00023458,2]
[424818997,1781181056000,-367.0,0.00024,2]
[424819015,1781181056000,-200.0,0.00024006,2]
[424819020,1781181056000,-3000.0,0.0002416,2]
[424819023,1781181056000,-660.0,0.00024263,7]
[424819024,1781181056000,-1760.5,0.00024324,2]
[424819033,1781181056000,-151.0,0.00024658,2]
[424819026,1781181056000,-260.4103811,0.00024554,2]
[424819029,1781181056000,-625.07,0.00024658,2]
[424819027,1781181056000,-155.18434343,0.00024656,2]
[424819028,1781181056000,-280.13424869,0.00024657,2]
[424819032,1781181056000,-151.0,0.00024658,2]
[424819025,1781181056000,-200.0,0.00024554,2]
[424819031,1781181056000,-151.0,0.00024658,2]
[424819021,1781181056000,-575.73060654,0.0002416,2]
[424819034,1781181056000,-1000.0,0.00024658,2]
[424819035,1781181056000,-151.0,0.00024658,2]
[424819045,1781181056000,-342.96,0.00024752,7]
[424819046,1781181056000,-166.98,0.00024867,5]
[424819036,1781181056000,-151.0,0.00024658,2]
[424819047,1781181056000,-929.51,0.00024886,7]
[424819037,1781181056000,-151.0,0.00024658,2]
[424819038,1781181056000,-151.0,0.00024658,2]
[424819041,1781181056000,-150.0,0.00024658,3]
[424819039,1781181056000,-151.0,0.00024658,2]
[424819043,1781181056000,-929.51,0.00024658,2]
[424819040,1781181056000,-205.275227,0.00024658,2]
[424818988,1781181056000,-242.15909246,0.00023458,2]
[424819030,1781181056000,-155.293853,0.00024658,2]
[424819016,1781181056000,-251.11897888,0.00024006,2]
[424819044,1781181056000,-931.49,0.00024658,2]
[424819018,1781181056000,-2991.49051684,0.00024006,2]
[424818998,1781181056000,-337.0,0.00024,2]
[424818996,1781181056000,-500.0,0.00024,2]
[424819042,1781181056000,-61249.44613502,0.00024658,7]
[424818993,1781181056000,-660.0,0.00023636,7]
[424818992,1781181056000,-166.98,0.00023613,5]
[424818994,1781181056000,-151.79021661,0.00023982,2]
[424818991,1781181056000,-631.64600025,0.00023574,120]
[424819017,1781181056000,-151.0,0.00024006,2]
[424818990,1781181056000,-2884.75459676,0.00023458,2]
[424818999,1781181056000,-1107.0,0.00024,2]
[424819001,1781181056000,-425.0,0.00024,2]
[424819003,1781181056000,-269.0,0.00024,2]
[424819000,1781181056000,-404.0,0.00024,2]
[424818995,1781181056000,-932.777091,0.00024,2]
[424819002,1781181056000,-1162.0,0.00024,2]
[424819019,1781181056000,-285.0,0.00024065,2]
[424819004,1781181056000,-478.0,0.00024,2]
[424819014,1781181056000,-158.71838309,0.00024006,2]
[424819013,1781181056000,-775.4783256,0.00024004,2]
[424819011,1781181056000,-621.78829552,0.00024004,2]
[424819012,1781181056000,-151.0,0.00024004,2]
[424819022,1781181056000,-150.0,0.00024164,2]
[424819009,1781181056000,-1296.0,0.00024,2]
[424819005,1781181056000,-277.0,0.00024,2]
[424819007,1781181056000,-428.0,0.00024,2]
[424819006,1781181056000,-396.0,0.00024,2]
[424819008,1781181056000,-342.0,0.00024,2]
[424819010,1781181056000,-1769.0,0.00024,2]
[424819084,1781181057000,-200.0,0.00025447,2]
[424819094,1781181057000,-550.0,0.00026,2]
[424819089,1781181057000,-280.03725111,0.0002565,2]
[424819086,1781181057000,-270.25952719,0.00025548,2]
[424819085,1781181057000,-660.0,0.00025515,9]
[424819080,1781181057000,-270.0455652,0.00025102,2]
[424819082,1781181057000,-931.49,0.00025115,30]
[424819081,1781181057000,-929.51,0.00025115,30]
[424819077,1781181057000,-4853.65,0.00025049,7]
[424819078,1781181057000,-150.0,0.00025083,22]
[424819083,1781181057000,-150.0,0.00025373,2]
[424819087,1781181057000,-171.13,0.00025644,2]
[424819104,1781181057000,-660.0,0.00026141,9]
[424819092,1781181057000,-100000.0,0.00025786,7]
[424819093,1781181057000,-164.0,0.00025995,2]
[424819090,1781181057000,-382.0,0.00025666,2]
[424819091,1781181057000,-207.3,0.00025744,2]
[424819095,1781181057000,-155.18434343,0.00026025,2]
[424819098,1781181057000,-1232.0,0.000261,2]
[424819097,1781181057000,-152.0,0.0002609,4]
[424819096,1781181057000,-150.0,0.00026028,3]
[424819102,1781181057000,-227.7,0.00026116,7]
[424819105,1781181057000,-200.0,0.00026198,2]
[424819099,1781181057000,-225.0,0.000261,2]
[424819079,1781181057000,-200.0,0.00025102,2]
[424819088,1781181057000,-200.0,0.0002565,2]
[424819076,1781181057000,-172.0,0.00025032,3]
[424819062,1781181057000,-447.92154219,0.00025,2]
[424819073,1781181057000,-257.12,0.00025,2]
[424819100,1781181057000,-994.0,0.000261,2]
[424819055,1781181057000,-410.64031093,0.00025,2]
[424819050,1781181057000,-769.02,0.000249,7]
[424819058,1781181057000,-271.93360028,0.00025,2]
[424819048,1781181057000,-931.49,0.00024886,7]
[424819052,1781181057000,-375.92227884,0.00025,2]
[424819049,1781181057000,-660.0,0.00024889,8]
[424819051,1781181057000,-588.0,0.00024947,2]
[424819056,1781181057000,-438.20996199,0.00025,2]
[424819053,1781181057000,-341.59966885,0.00025,2]
[424819059,1781181057000,-487.00012632,0.00025,2]
[424819054,1781181057000,-1123.45860913,0.00025,2]
[424819057,1781181057000,-1178.83666588,0.00025,2]
[424819060,1781181057000,-292.43237624,0.00025,2]
[424819061,1781181057000,-414.80448742,0.00025,2]
[424819064,1781181057000,-1298.28679011,0.00025,2]
[424819065,1781181057000,-257.12,0.00025,2]
[424819063,1781181057000,-346.89141084,0.00025,2]
[424819070,1781181057000,-257.12,0.00025,2]
[424819067,1781181057000,-257.12,0.00025,2]
[424819066,1781181057000,-257.12,0.00025,2]
[424819068,1781181057000,-257.12,0.00025,2]
[424819069,1781181057000,-257.12,0.00025,2]
[424819071,1781181057000,-257.12,0.00025,2]
[424819074,1781181057000,-257.12,0.00025,2]
[424819075,1781181057000,-1785.0,0.00025,2]
[424819101,1781181057000,-581.0,0.000261,2]
[424819072,1781181057000,-257.12,0.00025,2]
[424819106,1781181057000,-290.3986294,0.00026198,2]
[424819161,1781181057000,-427.152321,0.00027397,2]
[424819136,1781181057000,-189.78,0.00027359,7]
[424819135,1781181057000,-288.62274944,0.00027294,2]
[424819139,1781181057000,-155.18434344,0.00027394,2]
[424819150,1781181057000,-500.0,0.00027397,3]
[424819140,1781181057000,-669.93516508,0.00027397,2]
[424819142,1781181057000,-476.37531509,0.00027397,2]
[424819141,1781181057000,-202.48432325,0.00027397,30]
[424819143,1781181057000,-150.0,0.00027397,2]
[424819145,1781181057000,-500.0,0.00027397,3]
[424819146,1781181057000,-500.0,0.00027397,3]
[424819144,1781181057000,-150.0,0.00027397,2]
[424819147,1781181057000,-500.0,0.00027397,3]
[424819149,1781181057000,-500.0,0.00027397,3]
[424819148,1781181057000,-500.0,0.00027397,3]
[424819151,1781181057000,-500.0,0.00027397,3]
[424819154,1781181057000,-1500.0,0.00027397,2]
[424819159,1781181057000,-427.152321,0.00027397,2]
[424819157,1781181057000,-151.0,0.00027397,2]
[424819152,1781181057000,-493.15154286,0.00027397,3]
[424819156,1781181057000,-151.0,0.00027397,2]
[424819158,1781181057000,-151.0,0.00027397,2]
[424819155,1781181057000,-625.07,0.00027397,2]
[424819160,1781181057000,-427.152321,0.00027397,2]
[424819103,1781181057000,-166.98,0.00026116,5]
[424819137,1781181057000,-166.98,0.00027359,5]
[424819138,1781181057000,-660.0,0.00027394,10]
[424819153,1781181057000,-2585.09455613,0.00027397,2]
[424819131,1781181057000,-660.0,0.00026768,10]
[424819134,1781181057000,-723.89466569,0.00027085,2]
[424819107,1781181057000,-1760.5,0.00026296,2]
[424819117,1781181057000,-1504.815825,0.00026384,2]
[424819108,1781181057000,-150.0,0.00026296,2]
[424819110,1781181057000,-769.02,0.000263,7]
[424819114,1781181057000,-1504.815825,0.00026384,2]
[424819111,1781181057000,-1504.815825,0.00026384,2]
[424819109,1781181057000,-150.0,0.00026296,2]
[424819113,1781181057000,-1504.815825,0.00026384,2]
[424819115,1781181057000,-1504.815825,0.00026384,2]
[424819116,1781181057000,-1504.815825,0.00026384,2]
[424819118,1781181057000,-1504.815825,0.00026384,2]
[424819121,1781181057000,-1504.815825,0.00026384,2]
[424819112,1781181057000,-1504.815825,0.00026384,2]
[424819123,1781181057000,-150.0,0.00026641,2]
[424819132,1781181057000,-150.0,0.00027014,2]
[424819133,1781181057000,-199.98031646,0.00027014,2]
[424819122,1781181057000,-1504.815825,0.00026384,2]
[424819130,1781181057000,-301.14337869,0.00026746,2]
[424819125,1781181057000,-152.0,0.00026735,5]
[424819124,1781181057000,-4853.65,0.00026732,7]
[424819129,1781181057000,-200.0,0.00026746,2]
[424819119,1781181057000,-1504.815825,0.00026384,2]
[424819127,1781181057000,-151.0,0.00026743,2]
[424819128,1781181057000,-804.17102365,0.00026743,2]
[424819126,1781181057000,-644.79446245,0.00026743,2]
[424819120,1781181057000,-1504.815825,0.00026384,2]
[424819190,1781181058000,-840.326565,0.00027397,2]
[424819181,1781181058000,-639.305788,0.00027397,2]
[424819187,1781181058000,-639.305788,0.00027397,2]
[424819186,1781181058000,-639.305788,0.00027397,2]
[424819188,1781181058000,-639.305788,0.00027397,2]
[424819189,1781181058000,-840.326565,0.00027397,2]
[424819180,1781181058000,-639.305788,0.00027397,2]
[424819191,1781181058000,-840.326565,0.00027397,2]
[424819195,1781181058000,-840.326565,0.00027397,2]
[424819192,1781181058000,-840.326565,0.00027397,2]
[424819196,1781181058000,-840.326565,0.00027397,2]
[424819193,1781181058000,-840.326565,0.00027397,2]
[424819197,1781181058000,-840.326565,0.00027397,2]
[424819200,1781181058000,-840.326565,0.00027397,2]
[424819182,1781181058000,-639.305788,0.00027397,2]
[424819198,1781181058000,-840.326565,0.00027397,2]
[424819194,1781181058000,-840.326565,0.00027397,2]
[424819183,1781181058000,-639.305788,0.00027397,2]
[424819167,1781181058000,-427.152321,0.00027397,2]
[424819176,1781181058000,-529.16,0.00027397,2]
[424819201,1781181058000,-11397.78,0.00027397,10]
[424819162,1781181058000,-427.152321,0.00027397,2]
[424819163,1781181058000,-427.152321,0.00027397,2]
[424819169,1781181058000,-427.152321,0.00027397,2]
[424819171,1781181058000,-3087.87,0.00027397,2]
[424819166,1781181058000,-427.152321,0.00027397,2]
[424819164,1781181058000,-427.152321,0.00027397,2]
[424819168,1781181058000,-427.152321,0.00027397,2]
[424819175,1781181058000,-151.0,0.00027397,2]
[424819165,1781181058000,-427.152321,0.00027397,2]
[424819173,1781181058000,-151.0,0.00027397,2]
[424819172,1781181058000,-300.0,0.00027397,2]
[424819170,1781181058000,-427.152321,0.00027397,2]
[424819177,1781181058000,-639.305788,0.00027397,2]
[424819179,1781181058000,-639.305788,0.00027397,2]
[424819184,1781181058000,-639.305788,0.00027397,2]
[424819185,1781181058000,-639.305788,0.00027397,2]
[424819178,1781181058000,-639.305788,0.00027397,2]
[424819174,1781181058000,-151.0,0.00027397,2]
[424819203,1781181058000,-723.89466569,0.00027397,2]
[424819212,1781181058000,-191.96986187,0.00027452,7]
[424819199,1781181058000,-840.326565,0.00027397,2]
[424819221,1781181058000,-163.21374614,0.00027452,7]
[424819230,1781181058000,-784.52,0.0002755,30]
[424819229,1781181058000,-739.33,0.0002755,30]
[424819227,1781181058000,-163.87371191,0.00027545,7]
[424819231,1781181058000,-619.67,0.0002755,2]
[424819232,1781181058000,-738.84,0.0002755,30]
[424819233,1781181058000,-1076.47,0.0002755,30]
[424819228,1781181058000,-217.06714273,0.00027548,7]
[424819234,1781181058000,-785.48,0.0002755,30]
[424819237,1781181058000,-160.87804582,0.0002756,7]
[424819235,1781181058000,-620.99,0.0002755,2]
[424819239,1781181058000,-619.67,0.0002758,7]
[424819236,1781181058000,-165.85168492,0.0002756,7]
[424819240,1781181058000,-620.99,0.0002758,7]
[424819241,1781181058000,-619.67,0.00027611,30]
[424819242,1781181058000,-303.00164794,0.00027611,30]
[424819238,1781181058000,-163.09563306,0.0002756,7]
[424819223,1781181058000,-1013.0,0.00027465,10]
[424819224,1781181058000,-500.0,0.000275,7]
[424819219,1781181058000,-211.67501413,0.00027452,7]
[424819207,1781181058000,-228.20279791,0.00027452,7]
[424819204,1781181058000,-150.0,0.00027397,3]
[424819202,1781181058000,-13391.8,0.00027397,10]
[424819205,1781181058000,-183.80488923,0.00027452,7]
[424819209,1781181058000,-194.02286035,0.00027452,7]
[424819211,1781181058000,-167.69840384,0.00027452,5]
[424819208,1781181058000,-209.559819,0.00027452,7]
[424819210,1781181058000,-209.61213701,0.00027452,7]
[424819226,1781181058000,-164.6635492,0.00027545,7]
[424819206,1781181058000,-172.38732392,0.00027452,7]
[424819214,1781181058000,-250.77369293,0.00027452,7]
[424819216,1781181058000,-167.35765374,0.00027452,7]
[424819217,1781181058000,-152.1684078,0.00027452,7]
[424819218,1781181058000,-155.06156419,0.00027452,7]
[424819215,1781181058000,-191.85125379,0.00027452,7]
[424819220,1781181058000,-187.06592425,0.00027452,7]
[424819222,1781181058000,-157.84635979,0.00027452,7]
[424819225,1781181058000,-342.96,0.00027504,7]
[424819213,1781181058000,-174.7973313,0.00027452,2]
[424819243,1781181059000,-619.4153599,0.00013698,2]
[424819244,1781181059000,-36.1346401,0.00013698,2]
[424819245,1781181059000,-591.1153599,0.0002755,30]
[424819265,1781181060000,-167.06,0.00027671,13]
[424819266,1781181060000,-167.07,0.00027671,13]
[424819263,1781181060000,-620.99,0.00027641,2]
[424819268,1781181060000,-620.99,0.00027672,7]
[424819283,1781181060000,-620.99,0.00027794,30]
[424819282,1781181060000,-619.67,0.00027794,30]
[424819271,1781181060000,-784.52,0.00027711,7]
[424819270,1781181060000,-620.99,0.00027702,30]
[424819248,1781181060000,-539.51,0.00013698,2]
[424819281,1781181060000,-620.99,0.00027763,7]
[424819280,1781181060000,-619.67,0.00027763,7]
[424819274,1781181060000,-785.48,0.00027711,7]
[424819279,1781181060000,-620.99,0.00027733,2]
[424819278,1781181060000,-619.67,0.00027733,2]
[424819276,1781181060000,-737.52,0.00027711,7]
[424819277,1781181060000,-218.0,0.00027728,2]
[424819275,1781181060000,-1075.2,0.00027711,7]
[424819273,1781181060000,-1076.47,0.00027711,7]
[424819267,1781181060000,-619.67,0.00027672,7]